fUSD/lending_fUSD_20241231
["ID","MTS","AMOUNT","RATE_DAILY","PERIOD"]
[347244656,1735620638909,-1000.0,0.00012482,2]
[347244658,1735620638918,-1000.0,0.00012482,2]
[347244660,1735620638927,-1000.0,0.00012482,2]
[347244662,1735620638936,-1000.0,0.00012482,2]
[347244664,1735620638946,-1000.0,0.00012482,2]
[347244666,1735620638955,-1000.0,0.00012482,2]
[347244668,1735620638964,-1000.0,0.00012482,2]
[347244670,1735620638973,-1000.0,0.00012482,2]
[347244672,1735620638982,-36477.30660419,0.00012483,2]
[347244674,1735620638991,-623.44910638,0.00012484,2]
[347244676,1735620639000,-242.61214602,0.00012484,2]
[347244678,1735620639009,-339.41379113,0.00012484,2]
[347244680,1735620639019,-244.82720169,0.00012486,2]
[347244682,1735620639028,-135160.09512302,0.00012486,2]
[347244731,1735620640373,-442.61210009,0.00012486,2]
[347244733,1735620640384,-5811.5657202,0.00012486,2]
[347244736,1735620640396,-5091.82413923,0.00012486,2]
[347244742,1735620640451,-437.5677695,0.00012486,2]
[347244745,1735620640463,-808.37339128,0.00012486,2]
[347244753,1735620640532,-2610.97439795,0.00012486,2]
[347244755,1735620640544,-466.5999998,0.00012486,2]
[347244759,1735620640572,-4284.08219739,0.00012486,2]
[347244761,1735620640583,-4462.77618872,0.00012486,2]
[347244872,1735620643032,-978.79830355,0.00012486,2]
[347244873,1735620643097,-939.00831506,0.00012486,2]
[347244874,1735620643144,-883.5024607,0.00012486,2]
[347244875,1735620643155,-604.799997,0.00012486,2]
[347244876,1735620643166,-5330.88,0.00012486,2]
[347244877,1735620643177,-6806.8384954,0.00012486,2]
[347244878,1735620643200,-9849.16828037,0.00012486,2]
[347244879,1735620643213,-8847.32969744,0.00012486,2]
[347244880,1735620643224,-5363.82640682,0.00012486,2]
[347244881,1735620643315,-435.64141315,0.00012486,2]
[347244885,1735620646048,-626.8265502,0.00012486,2]
[347244886,1735620646059,-332.6633852,0.00012486,2]
[347244887,1735620646102,-43407.35718643,0.00012486,2]
[347244888,1735620646113,-383.5086327,0.00012486,2]
[347244889,1735620646124,-2305.34580522,0.00012486,2]
[347244890,1735620646212,-704.9042855,0.00012486,2]
[347244891,1735620646223,-1138.3242965,0.00012486,2]
[347244892,1735620646269,-50838.13488509,0.00012486,2]
[347244893,1735620646279,-36477.30660419,0.00012487,2]
[347244894,1735620646289,-1262.92200685,0.00012487,2]
[347244895,1735620646298,-623.44910638,0.00012487,2]
[347244896,1735620646308,-112175.33770008,0.00012488,2]
[347244897,1735620646319,-39487.17226742,0.00012488,2]
[347244898,1735620646370,-375.70982609,0.00012488,2]
[347244958,1735620909286,559.64,9.813e-05,2]
[347244959,1735621175884,264.71,0.00010137,2]
[347244979,1735621832177,-250.0,0.00011603,2]
[347244980,1735621832186,-250.0,0.00011608,2]
[347244981,1735621832196,-422.49,0.00011622,2]
[347244982,1735621832236,-69.65,0.00011622,2]
[347244983,1735621832245,-742.64,0.00011679,2]
[347244984,1735621832256,-257.36,0.00011679,2]
[347244985,1735621832265,-180.99,0.00011697,2]
[347244986,1735621832275,-369.91,0.0001187,2]
[347244987,1735621832284,-300.0,0.00011999,2]
[347244988,1735621832294,-450.0,0.00012,2]
[347244989,1735621832303,-7.25600315,0.00012,2]
[347244990,1735621832314,-83446.34280404,0.00012,2]
[347244996,1735621838138,-1436.50691704,0.00012,2]
[347244997,1735621838194,-88974.89427577,0.00012,2]
[347244998,1735621838203,-559.64,0.00012077,2]
[347244999,1735621838212,-635.431,0.0001246,2]
[347245000,1735621838222,-150.57,0.0001246,2]
[347245001,1735621838231,-568.186,0.0001246,2]
[347245002,1735621838240,-1966.708,0.0001246,2]
[347245003,1735621838249,-1338.475,0.0001246,2]
[347245004,1735621838259,-821.0,0.0001246,2]
[347245005,1735621838267,-924.432,0.0001246,2]
[347245006,1735621838276,-3781.208,0.0001246,2]
[347245007,1735621838285,-537.313,0.0001246,2]
[347245008,1735621838294,-3697.037,0.0001246,2]
[347245009,1735621838303,-3891.0,0.0001246,2]
[347245010,1735621838312,-2685.356,0.0001246,2]
[347245011,1735621838320,-150.0,0.0001246,2]
[347245012,1735621838329,-1102.0,0.0001246,2]
[347245013,1735621838338,-1742.5857736,0.00012488,2]
[347245014,1735621838347,-2796.4708768,0.00012488,2]
[347245015,1735621838357,-3000.0,0.00012488,2]
[347245016,1735621838366,-79313.74207721,0.00012488,2]
[347245180,1735621840237,-418.54789703,0.00012488,2]
[347245182,1735621840248,-1260.76652983,0.00012488,2]
[347245184,1735621840260,-6570.55781756,0.00012488,2]
[347245186,1735621840271,-1022.98596941,0.00012488,2]
[347245202,1735621840408,-6594.82303768,0.00012488,2]
[347245373,1735621843180,-3851.88067639,0.00012488,2]
[347245374,1735621843191,-300.0,0.00012488,2]
[347245375,1735621843343,-2599.444995,0.00012488,2]
[347245376,1735621843406,-1068.64597801,0.00012488,2]
[347245377,1735621843417,-4970.92635577,0.00012488,2]
[347245380,1735621843530,-4049.1615056,0.00012488,2]
[347245382,1735621843541,-78187.39059225,0.00012488,2]
[347245385,1735621843552,-501.05350463,0.00012488,2]
[347245441,1735621846206,-500.0,0.00012488,2]
[347245442,1735621846291,-6255.479037,0.00012488,2]
[347245443,1735621846355,-6351.14852619,0.00012488,2]
[347245444,1735621846457,-351256.18530613,0.00012488,2]
[347245445,1735621846703,-1986.91554437,0.00012488,2]
[347245446,1735621846714,-6065.02664466,0.00012488,2]
[347245447,1735622000582,536.57,9.751e-05,2]
[347245449,1735622499866,417.63,0.00010137,2]
[347245461,1735622984841,573.2,9.274e-05,2]
[347245536,1735623033460,-156.83,0.0001121,2]
[347245538,1735623033472,-155.42,0.00011481,2]
[347245539,1735623033482,-155.42,0.00011487,2]
[347245541,1735623033494,-6.33,0.00011494,2]
[347245543,1735623033506,-149.09,0.00011494,2]
[347245545,1735623033517,-155.42,0.000115,2]
[347245547,1735623033526,-155.42,0.00011507,2]
[347245549,1735623033536,-9.2140006,0.00011513,2]
[347245560,1735623033639,-146.2059994,0.00011513,2]
[347245562,1735623033649,-155.42,0.00011519,2]
[347245563,1735623033658,-155.42,0.00011526,2]
[347245565,1735623033667,-250.0,0.0001153,2]
[347245567,1735623033676,-155.42,0.00011532,2]
[347245569,1735623033685,-250.0,0.00011536,2]
[347245571,1735623033695,-573.2,0.00011538,2]
[347245573,1735623033704,-155.42,0.00011539,2]
[347245575,1735623033713,-515.77,0.00011547,2]
[347245577,1735623033722,-1000.0,0.00011589,2]
[347245579,1735623033732,-2857.23027339,0.0001178,2]
[347245581,1735623033798,-430.24377552,0.0001178,2]
[347245588,1735623038337,-3835.93529788,0.0001178,2]
[347245589,1735623038347,-371.539,0.0001187,2]
[347245590,1735623038359,-500.0,0.00011899,2]
[347245591,1735623038368,-313.13504212,0.00012,2]
[347245592,1735623038451,-4686.86495788,0.00012,2]
[347245593,1735623038460,-5052.0,0.00012,2]
[347245594,1735623038470,-443.0,0.0001227,2]
[347245595,1735623038484,-1168.3413,0.00012399,2]
[347245596,1735623038494,-225.0,0.000124,2]
[347245597,1735623038504,-225.0,0.000124,3]
[347245598,1735623038513,-154.61,0.000124,2]
[347245599,1735623038526,-3883.36250169,0.000124,2]
[347245811,1735623040622,-1116.63749831,0.000124,2]
[347245813,1735623040632,-64.7955017,0.000124,2]
[347245821,1735623040699,-1745.2,0.000124,2]
[347245824,1735623040711,-2631.01595791,0.000124,2]
[347245829,1735623040753,-268.13583273,0.000124,2]
[347245840,1735623040852,-290.85270766,0.000124,2]
[347245842,1735623040862,-23.09296859,0.0001243,2]
[347245849,1735623040913,-502.35000001,0.0001243,2]
[347245853,1735623040945,-1507.22631997,0.0001243,2]
[347245856,1735623040956,-683.6199995,0.0001243,2]
[347245858,1735623040967,-2090.775004,0.0001243,2]
[347245860,1735623040977,-192.93570793,0.0001243,2]
[347245862,1735623040986,-62.97629207,0.0001245,2]
[347245864,1735623040997,-4937.02370793,0.0001245,2]
[347245866,1735623041006,-3891.0,0.00012462,2]
[347245868,1735623041015,-268.62002321,0.00012462,2]
[347245870,1735623041026,-367.37997679,0.00012462,2]
[347245872,1735623041035,-150.0,0.00012462,2]
[347245874,1735623041044,-911.73627799,0.00012478,3]
[347245876,1735623041054,-225.0,0.0001248,2]
[347245878,1735623041063,-225.0,0.0001248,3]
[347245880,1735623041072,-1500.0,0.0001248,3]
[347245882,1735623041081,-2569.1522923,0.00012482,2]
[347245883,1735623041090,-2998.95024765,0.00012482,2]
[347245884,1735623041102,-1123.97998185,0.00012482,2]
[347245885,1735623041112,-2000.0,0.00012488,2]
[347245886,1735623041121,-200.0,0.00012488,2]
[347245887,1735623041130,-2000.0,0.00012488,2]
[347245888,1735623041139,-200.0,0.00012488,2]
[347245889,1735623041149,-200.0,0.00012488,2]
[347245890,1735623041158,-3000.0,0.00012488,2]
[347245892,1735623041167,-219.80388277,0.00012488,2]
[347245894,1735623041179,-1780.19611723,0.00012488,2]
[347245896,1735623041188,-200.0,0.00012488,2]
[347245898,1735623041198,-7097.35254429,0.00012488,2]
[347245900,1735623041208,-8943.84023489,0.00012488,2]
[347245994,1735623043945,-597.98100842,0.00012488,2]
[347246002,1735623044010,-6815.47,0.00012488,2]
[347246004,1735623044021,-500.0,0.00012488,2]
[347246021,1735623046390,-8656.18719702,0.00012488,2]
[347246022,1735623046466,-375536.42853858,0.00012488,2]
[347246023,1735623046565,-405.155,0.00012488,2]
[347246024,1735623046634,-2351.63147196,0.00012488,2]
[347246028,1735623470560,8101.0,0.00013,10]
[347246029,1735623597829,152.54,0.00010137,2]
[347246032,1735624019526,-412.61,0.00011031,2]
[347246033,1735624019546,-1058.77,0.00011047,2]
[347246034,1735624019567,-156.82,0.00011062,2]
[347246035,1735624019588,-156.29,0.0001155,2]
[347246036,1735624019610,-156.29,0.00011554,2]
[347246037,1735624019632,-156.29,0.00011558,2]
[347246038,1735624019654,-150.0,0.00011562,2]
[347246039,1735624019676,-156.29,0.00011562,2]
[347246040,1735624019698,-156.29,0.00011566,2]
[347246041,1735624019719,-156.29,0.0001157,2]
[347246042,1735624019740,-156.29,0.00011574,2]
[347246043,1735624019760,-250.0,0.00011575,2]
[347246044,1735624019782,-250.0,0.00011575,2]
[347246045,1735624019803,-156.29,0.00011577,2]
[347246046,1735624019826,-156.29,0.00011581,2]
[347246047,1735624019848,-156.29,0.00011585,2]
[347246048,1735624019870,-156.29,0.00011589,2]
[347246049,1735624019895,-156.29,0.00011593,2]
[347246050,1735624019917,-156.29,0.00011597,2]
[347246051,1735624019938,-156.29,0.00011601,2]
[347246052,1735624019959,-156.29,0.00011604,2]
[347246053,1735624019981,-156.29,0.00011608,2]
[347246054,1735624020003,-835.07,0.0001161,2]
[347246055,1735624020024,-1000.0,0.0001161,2]
[347246056,1735624020047,-373.667,0.0001187,2]
[347246057,1735624020451,-450.0,0.00012,2]
[347246058,1735624027009,1227.308804,0.0001145,2]
[347246059,1735624031987,1227.30880398,0.00011462,2]
[347246078,1735624207953,576.98,9.647e-05,2]
[347246081,1735624231652,-1000.0,0.00011556,2]
[347246082,1735624231662,-576.98,0.00011911,2]
[347246083,1735624231671,-150.73,0.00012075,2]
[347246084,1735624231681,-3000.0,0.0001236,2]
[347246085,1735624231690,-1371.91023516,0.00012399,2]
[347246086,1735624231982,-3628.08976484,0.00012399,2]
[347246088,1735624231991,-1000.0,0.00012399,2]
[347246090,1735624232000,-1414.91919287,0.00012399,2]
[347246098,1735624232067,-875.22278083,0.00012399,2]
[347246164,1735624237582,-209.8580263,0.00012399,2]
[347246165,1735624237592,-618.0,0.000124,5]
[347246166,1735624237601,-412.61,0.0001241,2]
[347246167,1735624237612,-557.613,0.00012463,2]
[347246168,1735624237621,-150.0,0.00012463,2]
[347246169,1735624237630,-121.1633617,0.00012463,2]
[347246170,1735624237642,-338.6806383,0.00012463,2]
[347246171,1735624237651,-150.0,0.00012463,2]
[347246172,1735624237660,-2486.61997305,0.00012466,2]
[347246173,1735624237670,-605.98000499,0.00012474,2]
[347246174,1735624237679,-2486.61997305,0.00012475,2]
[347246175,1735624237689,-2486.61997305,0.00012478,2]
[347246176,1735624237698,-2486.61997305,0.00012478,2]
[347246177,1735624237708,-2486.61997305,0.00012479,2]
[347246178,1735624237717,-1480.9236195,0.00012482,2]
[347246179,1735624237727,-1462.8332027,0.00012482,2]
[347246180,1735624237736,-200.0,0.00012488,2]
[347246181,1735624237745,-26667.50161717,0.00012488,2]
[347246182,1735624237756,-533.80624878,0.00012488,2]
[347246190,1735624237909,-544.38170658,0.00012488,2]
[347246192,1735624237920,-7240.21721996,0.00012488,2]
[347246198,1735624237989,-1064.35820605,0.00012488,2]
[347246200,1735624240039,-576.0383355,0.00012482,2]
[347246201,1735624240048,-1099.7616645,0.00012488,2]
[347246202,1735624240060,-15631.93697438,0.00012488,2]
[347246203,1735624240085,-1433.2,0.00012488,2]
[347246204,1735624240126,-1219.61553686,0.00012488,2]
[347246205,1735624240137,-2016.5,0.00012488,2]
[347246206,1735624240244,-3578.50931283,0.00012488,2]
[347246208,1735624242736,-317.92,0.00012488,2]
[347246209,1735624242811,-34136.83472874,0.00012488,2]
[347246210,1735624242822,-47942.07504742,0.00012488,2]
[347246211,1735624242834,-1300.6790414,0.00012488,2]
[347246212,1735624242845,-975.93,0.00012488,2]
[347246216,1735624242949,-900.10574579,0.00012488,2]
[347246230,1735624245463,-2777.30447037,0.00012488,2]
[347246231,1735624245575,-330.49842,0.00012488,2]
[347246311,1735624246658,-2386.39893921,0.00012488,2]
[347246324,1735625113699,2000.0,0.00011,2]
[347246325,1735625119753,519.28,9.633e-05,2]
[347246341,1735625431702,-250.0,0.00011533,2]
[347246342,1735625431712,-92.47391226,0.00011534,2]
[347246343,1735625431787,-451.72001,0.00011534,2]
[347246344,1735625431952,-455.80607774,0.00011534,2]
[347246345,1735625431962,-668.05,0.00011573,2]
[347246346,1735625431971,-358.104,0.0001187,2]
[347246347,1735625431980,-519.28,0.00011897,2]
[347246348,1735625431990,-450.0,0.00012,2]
[347246349,1735625431999,-150.88,0.00012138,2]
[347246350,1735625432008,-150.0,0.00012333,2]
[347246351,1735625432017,-159.6049504,0.00012473,2]
[347246352,1735625432026,-1952.30867226,0.0001248,2]
[347246353,1735625432047,-52.75132774,0.0001248,2]
[347246354,1735625432056,-922.4373041,0.00012482,2]
[347246355,1735625432065,-105.41638066,0.00012482,2]
[347246356,1735625432076,-1006.36,0.00012482,2]
[347246357,1735625432086,-40.73668714,0.00012482,2]
[347246358,1735625432095,-152.27817,0.00012482,2]
[347246359,1735625432103,-227.0625154,0.00012482,2]
[347246360,1735625432112,-198.20192105,0.00012482,2]
[347246361,1735625432126,-454.38399795,0.00012482,2]
[347246362,1735625432135,-476.9045267,0.00012482,2]
[347246363,1735625432144,-202.20385331,0.00012482,2]
[347246364,1735625432152,-155.50762204,0.00012488,2]
[347246559,1735625439921,-44.49237796,0.00012488,2]
[347246561,1735625439931,-3000.0,0.00012488,2]
[347246563,1735625439940,-34068.30762204,0.00012488,2]
[347246761,1735625445897,-383.6234366,0.00012482,2]
[347246762,1735625445907,-97.787509,0.00012488,2]
[347246763,1735625445918,-2304.88,0.00012488,2]
[347246764,1735625446136,-466.07,0.00012488,2]
[347246770,1735625692117,396.74,0.00010137,2]
[347246771,1735625916976,188.0,0.000101,2]
[347246772,1735626018773,492.1,9.604e-05,2]
[347246773,1735626409254,2002.0,0.000155,24]
[347246798,1735626632119,-481.69333661,0.000115,2]
[347246799,1735626632211,-518.30666339,0.000115,2]
[347246800,1735626632220,-307.0,0.00011552,2]
[347246801,1735626632229,-263.0,0.000117,2]
[347246802,1735626632238,-492.1,0.00011868,2]
[347246803,1735626632248,-343.369,0.0001187,2]
[347246804,1735626632258,-21.71714743,0.00012132,2]
[347246805,1735626636125,152.54,0.00010137,2]
[347246820,1735626637811,-918.53985257,0.00012132,2]
[347246821,1735626637820,-2500.0,0.00012278,2]
[347246822,1735626637829,-1729.0840318,0.000123,2]
[347246823,1735626637838,-8395.7548726,0.000123,2]
[347246824,1735626637847,-7906.44946202,0.00012377,2]
[347246825,1735626637858,-15316.06970762,0.00012377,2]
[347246826,1735626637911,-9092.46351309,0.00012377,2]
[347246827,1735626638049,-18891.86974697,0.00012377,2]
[347246828,1735626638058,-4285.80866054,0.00012378,2]
[347246848,1735626640754,-3262.63724211,0.00012378,2]
[347246849,1735626640806,-1705.5582732,0.00012378,2]
[347246850,1735626640817,-299.8200351,0.00012378,2]
[347246851,1735626640841,-289.15000193,0.00012378,2]
[347246852,1735626640858,-21858.75560197,0.00012378,2]
[347246893,1735626643244,-965.02382423,0.0001236,2]
[347247031,1735626646047,-292.80640999,0.0001236,2]
[347247033,1735626895167,915.5345802,0.0002,120]
[347247034,1735626947645,496.89,9.541e-05,2]
[347247035,1735627099433,50000.0,0.00011,2]
[347247036,1735627149224,50000.0,0.00011,2]
[347247037,1735627208028,11626.37,0.00011,2]
[347247038,1735627532826,239.08,0.00010137,2]
[347247051,1735627806650,472.04,9.168e-05,2]
[347247055,1735627832312,-250.0,0.00011306,2]
[347247056,1735627832323,-152.43,0.00011325,2]
[347247057,1735627832333,-152.43,0.00011332,2]
[347247058,1735627832342,-300.0,0.00011339,2]
[347247059,1735627832352,-152.43,0.00011339,2]
[347247060,1735627832361,-992.71,0.0001134,2]
[347247154,1735627837958,-1012.15,0.0001134,2]
[347247155,1735627838259,-21895.14,0.0001134,2]
[347247156,1735627838269,-152.43,0.00011346,2]
[347247157,1735627838278,-152.43,0.00011353,2]
[347247158,1735627838287,-152.43,0.00011361,2]
[347247159,1735627838298,-152.43,0.00011368,2]
[347247160,1735627838307,-152.43,0.00011375,2]
[347247161,1735627838318,-152.43,0.00011382,2]
[347247162,1735627838328,-472.04,0.00011432,2]
[347247163,1735627838338,-1000.0,0.00011459,2]
[347247164,1735627838348,-630.71,0.00011489,2]
[347247165,1735627838357,-344.035,0.0001187,2]
[347247166,1735627838367,-500.0,0.00011998,2]
[347247167,1735627838376,-354.32638723,0.00011998,2]
[347247169,1735627838385,-500.0,0.00011998,2]
[347247171,1735627838395,-500.0,0.00011998,2]
[347247173,1735627838403,-500.0,0.00011998,2]
[347247175,1735627838413,-500.0,0.00011998,2]
[347247177,1735627838422,-500.0,0.00011998,2]
[347247179,1735627838431,-500.0,0.00011998,2]
[347247181,1735627838441,-500.0,0.00011998,2]
[347247183,1735627838450,-500.0,0.00011998,2]
[347247185,1735627838460,-500.0,0.00011998,2]
[347247187,1735627838469,-500.0,0.00011998,2]
[347247189,1735627838479,-470.32038604,0.00011998,2]
[347247190,1735627838488,-500.0,0.00011998,2]
[347247191,1735627838498,-500.0,0.00011998,2]
[347247192,1735627838507,-500.0,0.00011998,2]
[347247194,1735627838517,-500.0,0.00011998,2]
[347247196,1735627838526,-721.28,0.00011999,2]
[347247198,1735627838536,-5363.73777537,0.00011999,2]
[347247201,1735627838546,-29173.13276977,0.00011999,2]
[347247204,1735627838571,-1150.0429755,0.00011999,2]
[347247252,1735627840480,-395.92311807,0.00011999,2]
[347247255,1735627840547,-8486.18655485,0.00011999,2]
[347247256,1735627840559,-10968.87784998,0.00011999,2]
[347247257,1735627840570,-941.68,0.00011999,2]
[347247258,1735627840582,-355.72425126,0.00011999,2]
[347247259,1735627840657,-671.11125443,0.00011999,2]
[347247260,1735627840668,-500.0,0.00011999,2]
[347247261,1735627840679,-2021.00555308,0.00011999,2]
[347247262,1735627840692,-6979.6,0.00011999,2]
[347247276,1735627843121,-9444.55953,0.00011999,2]
[347247281,1735627843320,-1161.34354614,0.00011999,2]
[347247282,1735627843369,-12538.32830649,0.00011999,2]
[347247283,1735627843486,-753.54749758,0.00011999,2]
[347247297,1735627939224,924.84790584,0.00012458,10]
[347247298,1735628590309,159.05,0.00010993,2]
[347247299,1735628590854,159.05,0.00010997,2]
[347247300,1735628590955,159.05,0.00011001,2]
[347247301,1735628591080,159.05,0.00011005,2]
[347247302,1735628591206,159.05,0.00011009,2]
[347247303,1735628649575,250.0,0.00010619,2]
[347247304,1735628654425,376.9,0.00010137,2]
[347247305,1735628747817,166.66666667,0.00010917,2]
[347247306,1735628784670,277.61,0.00010624,2]
[347247308,1735628790588,658.61,0.00010643,2]
[347247309,1735628797982,424.83,8.727e-05,2]
[347247310,1735628798138,424.83,0.00010991,2]
[347247311,1735628830079,181.16092209,0.00010948,2]
[347247332,1735629032289,-159.05,0.00011013,2]
[347247333,1735629032300,-159.05,0.00011017,2]
[347247334,1735629032309,-250.0,0.00011018,2]
[347247335,1735629032318,-159.05,0.00011021,2]
[347247336,1735629032328,-159.05,0.00011025,2]
[347247337,1735629032337,-159.05,0.00011029,2]
[347247338,1735629032347,-159.05,0.00011033,2]
[347247339,1735629032356,-159.05,0.00011037,2]
[347247340,1735629032366,-159.05,0.0001104,2]
[347247341,1735629032375,-159.05,0.00011044,2]
[347247342,1735629032385,-159.05,0.00011048,2]
[347247343,1735629032394,-1450.68,0.00011082,2]
[347247344,1735629032403,-717.3072011,0.00011184,2]
[347247345,1735629032429,-475.22000005,0.00011184,2]
[347247346,1735629032441,-807.47279885,0.00011184,2]
[347247347,1735629032450,-1500.0,0.00011186,2]
[347247348,1735629032460,-1000.0,0.00011241,2]
[347247349,1735629032470,-246.61,0.00011281,2]
[347247350,1735629032479,-200.0,0.00011346,2]
[347247351,1735629032489,-245.6,0.0001138,2]
[347247352,1735629032498,-0.31720275,0.00011414,2]
[347247353,1735629032509,-499.68279725,0.00011414,2]
[347247354,1735629032518,-86.51720275,0.00011507,2]
[347247355,1735629032574,-1884.39160671,0.00011507,2]
[347247356,1735629032626,-780.09119054,0.00011507,2]
[347247357,1735629032636,-167.19,0.00011523,2]
[347247358,1735629032646,-35.69880946,0.00011635,2]
[347247359,1735629032658,-174.92067976,0.00011635,2]
[347247360,1735629032667,-325.07932024,0.00011671,2]
[347247361,1735629032689,-176.92067976,0.00011671,2]
[347247362,1735629032699,-200.0,0.00011683,2]
[347247363,1735629032708,-436.65,0.000118,2]
[347247364,1735629032718,-750.17897989,0.00011848,2]
[347247365,1735629032727,-344.366,0.0001187,2]
[347247366,1735629032737,-3000.0,0.0001188,2]
[347247367,1735629032746,-756.8186,0.00011899,2]
[347247368,1735629032756,-747.0543,0.00011899,2]
[347247369,1735629032765,-1447.6891,0.000119,2]
[347247370,1735629032776,-181.16092209,0.000119,2]
[347247371,1735629032786,-500.0,0.00011973,2]
[347247372,1735629032797,-658.61,0.00011973,2]
[347247373,1735629032807,-1000.0,0.0001198,2]
[347247374,1735629032817,-1299.730888,0.00011998,3]
[347247375,1735629032827,-492.01,0.00011998,2]
[347247376,1735629032836,-504.98,0.00011998,2]
[347247377,1735629032845,-500.0,0.00011998,2]
[347247378,1735629032854,-500.0,0.00011998,2]
[347247379,1735629032864,-932.209,0.00011999,2]
[347247380,1735629032873,-1000.0,0.00011999,2]
[347247381,1735629032884,-712.06,0.00011999,2]
[347247382,1735629032893,-3743.83369032,0.00011999,2]
[347247383,1735629032903,-287257.87820691,0.00011999,2]
[347247384,1735629032950,-407.6,0.00011998,2]
[347247385,1735629033137,-92.4,0.00011998,2]
[347247386,1735629033147,-522.49477757,0.00011998,2]
[347247387,1735629033157,-4951.32411525,0.00011999,2]
[347247388,1735629033195,-598.93662339,0.00011999,2]
[347247391,1735629038213,-74467.95520826,0.00011999,2]
[347247392,1735629038224,-13626.47147605,0.00011999,2]
[347247393,1735629038236,-40591.51144084,0.00011999,2]
[347247394,1735629038247,-8296.4823093,0.00011999,2]
[347247395,1735629038350,-24439.19141542,0.00011999,2]
[347247396,1735629038362,-1682.74138119,0.00011999,2]
[347247397,1735629038374,-4469.77747567,0.00011999,2]
[347247398,1735629038386,-21374.17669279,0.00011999,2]
[347247399,1735629038415,-1019.75198005,0.00011999,2]
[347247400,1735629038426,-684.3000014,0.00011999,2]
[347247401,1735629038438,-297963.43375054,0.00011999,2]
[347247402,1735629038449,-333.37312191,0.00011999,2]
[347247403,1735629038557,-953.42928146,0.00011999,2]
[347247607,1735629040593,-1195.59261023,0.00011999,2]
[347247609,1735629040605,-1841.21470317,0.00011999,2]
[347247611,1735629040616,-3182.90328187,0.00011999,2]
[347247615,1735629040641,-9850.47681093,0.00011999,2]
[347247618,1735629040666,-1787.55805162,0.00011999,2]
[347247620,1735629040677,-151627.34820672,0.00011999,2]
[347247626,1735629040725,-673.06768027,0.00011999,2]
[347247632,1735629040755,-2240.91721747,0.00011999,2]
[347247634,1735629040766,-568.5368175,0.00011999,2]
[347247640,1735629040818,-604.27660424,0.00011999,2]
[347247646,1735629040863,-802.66496489,0.00011999,2]
[347247648,1735629040874,-632.27300002,0.00011999,2]
[347247651,1735629040885,-425.1582348,0.00011999,2]
[347247659,1735629040955,-722.19529931,0.00011999,2]
[347247841,1735629043286,-671.76214955,0.00011999,2]
[347247842,1735629043437,-2695.74136285,0.00011999,2]
[347247843,1735629043448,-1834.16420395,0.00011999,2]
[347247844,1735629043459,-5242.74940921,0.00011999,2]
[347247845,1735629043471,-7336.18371553,0.00011999,2]
[347247846,1735629043482,-1469.6840553,0.00011999,2]
[347247847,1735629043518,-930.16104195,0.00011999,2]
[347247848,1735629043529,-21533.27470492,0.00011999,2]
[347247849,1735629043541,-10377.31968114,0.00011999,2]
[347247850,1735629043613,-1580.61261136,0.00011999,2]
[347247851,1735629043625,-585.45598353,0.00011999,2]
[347247852,1735629043637,-6855.90067227,0.00011999,2]
[347247853,1735629043648,-6971.48568337,0.00011999,2]
[347247854,1735629043659,-747.08831743,0.00011999,2]
[347247855,1735629043671,-1132.58449139,0.00011999,2]
[347247869,1735629046570,-38916.72389401,0.00011999,2]
[347247870,1735629046595,-3639.43722542,0.00011999,2]
[347247871,1735629046631,-7242.9568409,0.00011999,2]
[347247872,1735629046642,-463.49596685,0.00011999,2]
[347247873,1735629046653,-324.95834368,0.00011999,2]
[347247874,1735629046683,-2312.42048,0.00011999,2]
[347247875,1735629046723,-1449.07818022,0.00011999,2]
[347247876,1735629046734,-1865.90015416,0.00011999,2]
[347247877,1735629046746,-1303.17693193,0.00011999,2]
[347247878,1735629046757,-13917.51677167,0.00011999,2]